fUSD/lending_fUSD_20240719
["ID","MTS","AMOUNT","RATE_DAILY","PERIOD"]
[332648684,1721405446693,-500.0,0.00033424,14]
[332648686,1721405446703,-500.0,0.00033424,14]
[332648688,1721405446713,-1795.89,0.00033424,14]
[332648690,1721405446722,-739.71,0.00033424,14]
[332648692,1721405446732,-500.0,0.00033424,14]
[332648694,1721405446742,-500.0,0.00033424,14]
[332648696,1721405446752,-925.24,0.00033424,14]
[332648698,1721405446761,-2641.15,0.00033424,14]
[332648700,1721405446771,-856.94,0.00033424,14]
[332648702,1721405446781,-690.03,0.00033424,14]
[332648704,1721405446791,-500.0,0.00033424,14]
[332648706,1721405446801,-1022.79,0.00033424,14]
[332648708,1721405446810,-1025.98,0.00033424,14]
[332648710,1721405446821,-712.85,0.00033424,14]
[332648712,1721405446830,-500.0,0.00033424,14]
[332648714,1721405446840,-2660.99,0.00033424,14]
[332648716,1721405446850,-500.0,0.00033424,14]
[332648718,1721405446864,-644.42,0.00033424,14]
[332648720,1721405446873,-847.33,0.00033424,14]
[332648722,1721405446883,-2189.59,0.00033424,14]
[332648724,1721405446893,-500.0,0.00033424,14]
[332648726,1721405446902,-500.0,0.00033424,14]
[332648728,1721405446913,-748.24,0.00033424,14]
[332648730,1721405446922,-500.0,0.00033424,14]
[332648732,1721405446932,-500.0,0.00033424,14]
[332648734,1721405446942,-500.0,0.00033424,14]
[332648736,1721405446952,-792.94,0.00033424,14]
[332648738,1721405446962,-500.0,0.00033424,14]
[332648740,1721405446972,-650.68,0.00033424,14]
[332648742,1721405446982,-1669.97,0.00033424,14]
[332648744,1721405446991,-500.0,0.00033424,14]
[332648746,1721405447001,-500.0,0.00033424,14]
[332648747,1721405447010,-3200.91,0.00033424,14]
[332648749,1721405447020,-576.05,0.00033424,14]
[332648751,1721405447029,-1188.46,0.00033424,14]
[332648754,1721405447040,-524.24,0.00033424,14]
[332648755,1721405447049,-2101.33,0.00033424,14]
[332648757,1721405447059,-500.0,0.00033424,14]
[332648759,1721405447069,-3620.33,0.00033424,14]
[332648761,1721405447079,-724.14,0.00033424,14]
[332648763,1721405447089,-500.0,0.00033424,14]
[332648765,1721405447099,-500.0,0.00033424,14]
[332648767,1721405447110,-1606.46,0.00033424,14]
[332648769,1721405447120,-2849.42,0.00033424,14]
[332648771,1721405447130,-500.0,0.00033424,14]
[332648773,1721405447140,-500.0,0.00033424,14]
[332648775,1721405447149,-735.51,0.00033424,14]
[332648777,1721405447159,-500.0,0.00033424,14]
[332648779,1721405447169,-2219.39,0.00033424,14]
[332648781,1721405447179,-500.0,0.00033424,14]
[332648783,1721405447188,-1136.35,0.00033424,14]
[332648785,1721405447198,-3478.95,0.00033424,14]
[332648786,1721405447207,-1471.57,0.00033424,14]
[332648788,1721405447219,-501.08823945,0.00033424,14]
[332648790,1721405447229,-500.0,0.00033424,14]
[332648792,1721405447240,-500.0,0.00033424,14]
[332648795,1721405447254,-536.55,0.00033424,14]
[332648797,1721405447264,-619.21,0.00033424,14]
[332648799,1721405447274,-3703.31,0.00033424,14]
[332648801,1721405447285,-1121.26,0.00033424,14]
[332648802,1721405447295,-552.02,0.00033424,14]
[332648804,1721405447304,-500.0,0.00033424,14]
[332648806,1721405447314,-500.0,0.00033424,14]
[332648808,1721405447325,-1380.4,0.00033424,14]
[332648810,1721405447334,-500.0,0.00033424,14]
[332648812,1721405447344,-500.0,0.00033424,14]
[332648814,1721405447353,-1550.95,0.00033424,14]
[332648816,1721405447366,-500.0,0.00033424,14]
[332648819,1721405447377,-500.0,0.00033424,14]
[332648821,1721405447387,-1560.94,0.00033424,14]
[332648823,1721405447397,-500.0,0.00033424,14]
[332648825,1721405447406,-522.62,0.00033424,14]
[332648827,1721405447416,-499.55748756,0.00033424,14]
[332648829,1721405447428,-500.0,0.00033424,14]
[332648831,1721405447440,-533.79,0.00033424,14]
[332648833,1721405447452,-1049.36,0.00033424,14]
[332648835,1721405447463,-500.0,0.00033424,14]
[332648838,1721405447474,-500.0,0.00033424,14]
[332648840,1721405447485,-1990.65,0.00033424,14]
[332648842,1721405447497,-1111.98,0.00033424,14]
[332648844,1721405447508,-1730.51,0.00033424,14]
[332648846,1721405447518,-551.36,0.00033424,14]
[332648848,1721405447528,-4326.01,0.00033424,14]
[332648850,1721405447538,-588.86,0.00033424,14]
[332648852,1721405447550,-1572.72,0.00033424,14]
[332648855,1721405447561,-500.0,0.00033424,14]
[332648857,1721405447572,-500.0,0.00033424,14]
[332648859,1721405447584,-760.92,0.00033424,14]
[332648861,1721405447595,-1936.7,0.00033424,14]
[332648863,1721405447608,-500.0,0.00033424,14]
[332648865,1721405447620,-2053.54,0.00033424,14]
[332648867,1721405447632,-505.91253988,0.00033424,14]
[332648869,1721405447643,-2486.51,0.00033424,14]
[332648872,1721405447654,-4288.83,0.00033424,14]
[332648874,1721405447666,-500.0,0.00033424,14]
[332648876,1721405447678,-500.0,0.00033424,14]
[332648878,1721405447691,-2391.82,0.00033424,14]
[332648880,1721405447703,-500.0,0.00033424,14]
[332648883,1721405447716,-996.04,0.00033424,14]
[332648885,1721405447728,-702.75,0.00033424,14]
[332648887,1721405447740,-500.0,0.00033424,14]
[332648889,1721405447752,-500.0,0.00033424,14]
[332648891,1721405447762,-500.0,0.00033424,14]
[332648894,1721405447775,-500.0,0.00033424,14]
[332648896,1721405447787,-1236.2,0.00033424,14]
[332648898,1721405447797,-315.16484211,0.00033424,14]
[332648900,1721405447810,-1419.38,0.00033424,14]
[332648902,1721405447821,-500.0,0.00033424,14]
[332648905,1721405447833,-500.0,0.00033424,14]
[332648907,1721405447844,-523.99869338,0.00033424,14]
[332648909,1721405447855,-508.6296648,0.00033424,14]
[332648911,1721405447868,-579.37009872,0.00033424,14]
[332648913,1721405447880,-500.0,0.00033424,14]
[332648915,1721405447890,-500.0,0.00033424,14]
[332648917,1721405447900,-2723.49,0.00033424,14]
[332648920,1721405447910,-500.0,0.00033424,14]
[332648921,1721405447920,-1245.55,0.00033424,14]
[332648924,1721405447931,-500.0,0.00033424,14]
[332648926,1721405447942,-1708.14,0.00033424,14]
[332648928,1721405447953,-500.0,0.00033424,14]
[332648930,1721405447964,-500.0,0.00033424,14]
[332648932,1721405447975,-500.0,0.00033424,14]
[332648934,1721405447986,-500.0,0.00033424,14]
[332648937,1721405447997,-2111.97,0.00033424,14]
[332648939,1721405448010,-500.0,0.00033424,14]
[332648941,1721405448021,-500.0,0.00033424,14]
[332648943,1721405448032,-2049.75,0.00033424,7]
[332648945,1721405448043,-500.0,0.00033424,14]
[332648947,1721405448054,-500.0,0.00033424,14]
[332648950,1721405448066,-3150.3,0.00033424,14]
[332648952,1721405448077,-1668.58,0.00033424,14]
[332648954,1721405448090,-583.78,0.00033424,14]
[332648956,1721405448102,-1289.1,0.00033424,14]
[332648959,1721405448115,-1118.18,0.00033424,14]
[332648961,1721405448126,-766.34,0.00033424,14]
[332648963,1721405448137,-913.26,0.00033424,14]
[332648965,1721405448147,-2072.22,0.00033424,14]
[332648967,1721405448158,-2467.95,0.00033424,14]
[332648969,1721405448169,-500.0,0.00033424,14]
[332648971,1721405448180,-2287.86,0.00033424,14]
[332648973,1721405448190,-500.0,0.00033424,14]
[332648975,1721405448201,-3489.46,0.00033424,14]
[332648978,1721405448213,-823.26,0.00033424,14]
[332648980,1721405448225,-500.0,0.00033424,14]
[332648982,1721405448240,-500.0,0.00033424,14]
[332648984,1721405448251,-500.0,0.00033424,14]
[332648986,1721405448262,-1578.39,0.00033424,14]
[332648988,1721405448275,-500.0,0.00033424,14]
[332648990,1721405448287,-500.0,0.00033424,14]
[332648992,1721405448298,-500.0,0.00033424,14]
[332648995,1721405448309,-500.0,0.00033424,14]
[332648997,1721405448321,-756.25,0.00033424,14]
[332648999,1721405448334,-500.0,0.00033424,14]
[332649001,1721405448345,-541.63,0.00033424,14]
[332649003,1721405448358,-500.0,0.00033424,14]
[332649005,1721405448371,-500.0,0.00033424,14]
[332649008,1721405448385,-500.0,0.00033424,14]
[332649010,1721405448397,-1412.59,0.00033424,14]
[332649012,1721405448408,-1067.11,0.00033424,14]
[332649014,1721405448419,-500.0,0.00033424,14]
[332649016,1721405448430,-2948.42,0.00033424,14]
[332649018,1721405448441,-500.0,0.00033424,14]
[332649020,1721405448452,-784.93,0.00033424,14]
[332649022,1721405448463,-500.0,0.00033424,14]
[332649025,1721405448474,-500.0,0.00033424,14]
[332649027,1721405448487,-640.01,0.00033424,14]
[332649029,1721405448498,-500.0,0.00033424,14]
[332649031,1721405448510,-513.52,0.00033424,14]
[332649033,1721405448521,-1028.44,0.00033424,14]
[332649035,1721405448533,-2252.48,0.00033424,14]
[332649038,1721405448544,-500.0,0.00033424,14]
[332649040,1721405448555,-3712.8,0.00033424,14]
[332649042,1721405448566,-2021.9,0.00033424,14]
[332649044,1721405448578,-1403.26,0.00033424,14]
[332649047,1721405448590,-500.0,0.00033424,14]
[332649049,1721405448601,-674.78,0.00033424,14]
[332649051,1721405448615,-937.06,0.00033424,14]
[332649053,1721405448625,-2643.01,0.00033424,14]
[332649055,1721405448636,-1627.03,0.00033424,14]
[332649057,1721405448648,-2462.55,0.00033424,14]
[332649059,1721405448659,-500.0,0.00033424,14]
[332649061,1721405448670,-500.0,0.00033424,14]
[332649064,1721405448682,-500.0,0.00033424,14]
[332649066,1721405448693,-3287.52,0.00033424,14]
[332649068,1721405448705,-500.0,0.00033424,14]
[332649070,1721405448717,-500.0,0.00033424,14]
[332649072,1721405448728,-1936.03,0.00033424,14]
[332649074,1721405448741,-500.0,0.00033424,14]
[332649076,1721405448753,-2333.6,0.00033424,14]
[332649079,1721405448766,-1393.59,0.00033424,14]
[332649081,1721405448777,-500.0,0.00033424,14]
[332649083,1721405448789,-1525.3,0.00033424,14]
[332649085,1721405448801,-500.0,0.00033424,14]
[332649087,1721405448813,-500.0,0.00033424,14]
[332649090,1721405448825,-500.0,0.00033424,14]
[332649092,1721405448836,-500.0,0.00033424,14]
[332649094,1721405448848,-500.0,0.00033424,14]
[332649096,1721405448862,-500.0,0.00033424,14]
[332649098,1721405448873,-500.0,0.00033424,14]
[332649101,1721405448886,-500.0,0.00033424,14]
[332649103,1721405448898,-573.94,0.00033424,14]
[332649105,1721405448911,-1371.28,0.00033424,14]
[332649107,1721405448924,-500.0,0.00033424,14]
[332649110,1721405448937,-3469.57,0.00033424,14]
[332649190,1721405449937,-631.52,0.00033424,14]
[332649195,1721405449975,-588.43,0.00033424,14]
[332649198,1721405450009,-500.0,0.00033424,14]
[332649199,1721405450019,-2176.17,0.00033424,14]
[332649200,1721405450029,-1955.31,0.00033424,14]
[332649201,1721405450039,-500.0,0.00033424,14]
[332649202,1721405450048,-500.0,0.00033424,14]
[332649203,1721405450058,-2427.02,0.00033424,14]
[332649204,1721405450068,-500.0,0.00033424,14]
[332649205,1721405450077,-500.0,0.00033424,14]
[332649206,1721405450087,-500.0,0.00033424,14]
[332649207,1721405450096,-1828.59,0.00033424,14]
[332649208,1721405450109,-537.96668842,0.00033424,14]
[332649209,1721405450119,-5486.25,0.00033424,14]
[332649210,1721405450129,-1223.8,0.00033424,14]
[332649211,1721405450139,-500.0,0.00033424,14]
[332649212,1721405450148,-2146.48,0.00033424,14]
[332649213,1721405450158,-3526.03,0.00033424,14]
[332649214,1721405450167,-500.0,0.00033424,14]
[332649215,1721405450177,-4860.92,0.00033424,14]
[332649216,1721405450186,-764.16,0.00033424,14]
[332649217,1721405450196,-500.0,0.00033424,14]
[332649218,1721405450206,-500.0,0.00033424,14]
[332649219,1721405450216,-911.04,0.00033424,14]
[332649220,1721405450226,-500.0,0.00033424,14]
[332649221,1721405450239,-500.0,0.00033424,14]
[332649222,1721405450249,-1186.38,0.00033424,14]
[332649223,1721405450258,-803.43,0.00033424,14]
[332649224,1721405450269,-1434.17,0.00033424,14]
[332649225,1721405450280,-2377.08,0.00033424,14]
[332649226,1721405450290,-1324.17,0.00033424,14]
[332649227,1721405450300,-579.72,0.00033424,14]
[332649228,1721405450309,-1063.45,0.00033424,14]
[332649229,1721405450319,-997.28,0.00033424,14]
[332649230,1721405450330,-500.0,0.00033424,14]
[332649231,1721405450339,-1722.45,0.00033424,14]
[332649232,1721405450350,-500.0,0.00033424,14]
[332649233,1721405450362,-1747.58,0.00033424,14]
[332649234,1721405450372,-691.87,0.00033424,14]
[332649235,1721405450382,-764.08,0.00033424,14]
[332649236,1721405450391,-2778.31,0.00033424,14]
[332649237,1721405450401,-731.94,0.00033424,14]
[332649238,1721405450411,-746.56,0.00033424,14]
[332649239,1721405450420,-2370.14,0.00033424,14]
[332649240,1721405450430,-2176.52,0.00033424,14]
[332649241,1721405450439,-500.0,0.00033424,14]
[332649242,1721405450449,-946.47,0.00033424,14]
[332649243,1721405450459,-843.15,0.00033424,14]
[332649244,1721405450469,-2612.42,0.00033424,14]
[332649245,1721405450480,-3433.1,0.00033424,14]
[332649246,1721405450489,-3257.38,0.00033424,14]
[332649247,1721405450499,-4807.83,0.00033424,14]
[332649248,1721405450508,-500.0,0.00033424,14]
[332649249,1721405450518,-776.7,0.00033424,14]
[332649250,1721405450528,-500.0,0.00033424,14]
[332649251,1721405450538,-6084.24,0.00033424,14]
[332649252,1721405450547,-453.39330219,0.00033424,14]
[332649253,1721405450557,-3104.0,0.00033424,14]
[332649255,1721405450567,-500.0,0.00033424,14]
[332649257,1721405450576,-929.51,0.00033424,14]
[332649259,1721405450586,-1119.11,0.00033424,14]
[332649260,1721405450595,-591.57,0.00033424,14]
[332649261,1721405450606,-773.81,0.00033424,14]
[332649262,1721405450615,-886.94,0.00033424,14]
[332649263,1721405450625,-500.0,0.00033424,14]
[332649264,1721405450635,-834.14,0.00033424,14]
[332649265,1721405450646,-520.14,0.00033424,14]
[332649266,1721405450656,-12975.5,0.00033424,14]
[332649267,1721405450666,-3729.59,0.00033424,14]
[332649268,1721405450676,-500.0,0.00033424,14]
[332649269,1721405450686,-564.41,0.00033424,14]
[332649270,1721405450695,-500.0,0.00033424,14]
[332649271,1721405450705,-2202.35,0.00033424,14]
[332649272,1721405450715,-500.0,0.00033424,14]
[332649273,1721405450724,-500.0,0.00033424,14]
[332649274,1721405450734,-4200.60280469,0.00033424,14]
[332649275,1721405451275,-244.20719531,0.00033424,14]
[332649276,1721405451285,-517.39,0.00033424,14]
[332649277,1721405451295,-6544.05,0.00033424,14]
[332649278,1721405451304,-1479.28,0.00033424,14]
[332649279,1721405451315,-500.0,0.00033424,14]
[332649280,1721405451325,-500.0,0.00033424,14]
[332649281,1721405451336,-7598.05,0.00033424,14]
[332649282,1721405451346,-500.0,0.00033424,14]
[332649283,1721405451355,-1223.02,0.00033424,14]
[332649284,1721405451367,-2212.27927339,0.00033424,14]
[332649285,1721405451384,-406.57072661,0.00033424,14]
[332649286,1721405451393,-500.0,0.00033424,14]
[332649287,1721405451402,-500.0,0.00033424,14]
[332649288,1721405451411,-120.11459117,0.00033424,14]
[332649289,1721405451423,-379.88540883,0.00033424,14]
[332649290,1721405451432,-282.85459117,0.00033424,14]
[332649291,1721405451444,-217.14540883,0.00033424,14]
[332649292,1721405451453,-5744.48,0.00033424,14]
[332649293,1721405451463,-1017.25,0.00033424,14]
[332649294,1721405451473,-1155.3,0.00033424,14]
[332649295,1721405451483,-597.01,0.00033424,14]
[332649296,1721405451492,-4429.22,0.00033424,14]
[332649297,1721405451501,-783.69,0.00033424,14]
[332649298,1721405451511,-590.27,0.00033424,14]
[332649299,1721405451521,-500.0,0.00033424,14]
[332649300,1721405451532,-3470.76,0.00033424,14]
[332649301,1721405451542,-500.0,0.00033424,14]
[332649302,1721405451552,-501.12,0.00033424,14]
[332649303,1721405451561,-2242.37,0.00033424,14]
[332649304,1721405451570,-500.0,0.00033424,14]
[332649305,1721405451579,-2671.8,0.00033424,14]
[332649306,1721405451589,-500.0,0.00033424,14]
[332649307,1721405451598,-1458.44,0.00033424,14]
[332649308,1721405451607,-850.9,0.00033424,14]
[332649309,1721405451616,-3379.93,0.00033424,14]
[332649310,1721405451628,-782.77,0.00033424,14]
[332649311,1721405451638,-983.6,0.00033424,14]
[332649312,1721405451648,-2276.75,0.00033424,14]
[332649313,1721405451658,-2517.04,0.00033424,14]
[332649314,1721405451668,-1306.08,0.00033424,14]
[332649315,1721405451679,-7579.61,0.00033424,14]
[332649316,1721405451690,-528.52,0.00033424,14]
[332649317,1721405451700,-500.0,0.00033424,14]
[332649318,1721405451710,-612.81,0.00033424,14]
[332649319,1721405451719,-2573.03,0.00033424,14]
[332649320,1721405451728,-500.0,0.00033424,14]
[332649321,1721405451738,-1623.35,0.00033424,14]
[332649322,1721405451747,-662.31,0.00033424,14]
[332649323,1721405451756,-944.06,0.00033424,14]
[332649324,1721405451766,-4158.79,0.00033424,14]
[332649325,1721405451775,-500.0,0.00033424,14]
[332649326,1721405451785,-500.0,0.00033424,14]
[332649327,1721405451794,-823.61,0.00033424,14]
[332649328,1721405451803,-2052.86,0.00033424,14]
[332649329,1721405451814,-4173.55,0.00033424,14]
[332649330,1721405451823,-500.0,0.00033424,14]
[332649331,1721405451832,-3312.59,0.00033424,14]
[332649332,1721405451842,-2591.99,0.00033424,14]
[332649333,1721405451853,-500.0,0.00033424,14]
[332649334,1721405451865,-500.0,0.00033424,14]
[332649335,1721405451875,-500.0,0.00033424,14]
[332649336,1721405451885,-1670.33,0.00033424,14]
[332649337,1721405451894,-1110.3,0.00033424,14]
[332649338,1721405451904,-3295.96,0.00033424,14]
[332649339,1721405451913,-3203.29,0.00033424,14]
[332649340,1721405451923,-12713.43,0.00033424,14]
[332649341,1721405451932,-500.0,0.00033424,14]
[332649342,1721405451942,-9922.87,0.00033424,14]
[332649343,1721405451952,-12334.5,0.00033424,14]
[332649344,1721405451962,-1634.46,0.00033424,14]
[332649345,1721405451971,-2349.36,0.00033424,14]
[332649346,1721405451981,-1715.39,0.00033424,14]
[332649347,1721405451991,-2218.75,0.00033424,14]
[332649348,1721405452002,-1842.31,0.00033424,14]
[332649349,1721405452013,-28938.05,0.00033424,14]
[332649350,1721405452023,-579.83,0.00033424,14]
[332649351,1721405452034,-551.49500053,0.00033424,14]
[332649352,1721405452045,-2574.56,0.00033424,14]
[332649353,1721405452056,-6670.15,0.00033424,14]
[332649354,1721405452067,-500.0,0.00033424,14]
[332649355,1721405452076,-9010.61,0.00033424,14]
[332649356,1721405452086,-951.45,0.00033424,14]
[332649357,1721405452097,-1645.9,0.00033424,14]
[332649358,1721405452108,-1951.67,0.00033424,14]
[332649359,1721405452118,-500.0,0.00033424,14]
[332649360,1721405452127,-1689.61,0.00033424,14]
[332649361,1721405452206,-714.02,0.00033424,14]
[332649362,1721405452217,-7708.62,0.00033424,14]
[332649363,1721405452227,-5729.14,0.00033424,14]
[332649364,1721405452241,-1322.64,0.00033424,14]
[332649365,1721405452251,-1063.5,0.00033424,14]
[332649366,1721405452261,-1362.93,0.00033424,14]
[332649367,1721405452270,-12312.14,0.00033424,14]
[332649368,1721405452280,-1299.48,0.00033424,14]
[332649369,1721405452290,-924.96,0.00033424,14]
[332649370,1721405452299,-1762.71,0.00033424,14]
[332649371,1721405452309,-7146.83,0.00033424,14]
[332649372,1721405452318,-500.0,0.00033424,14]
[332649373,1721405452329,-977.45,0.00033424,14]
[332649374,1721405452339,-2889.83,0.00033424,14]
[332649375,1721405452349,-500.0,0.00033424,14]
[332649376,1721405452361,-579.71,0.00033424,14]
[332649377,1721405452372,-4396.85,0.00033424,14]
[332649378,1721405452383,-500.0,0.00033424,2]
[332649379,1721405452392,-7179.59,0.00033424,14]
[332649380,1721405452401,-502.88,0.00033424,14]
[332649381,1721405452411,-19689.3,0.00033424,14]
[332649382,1721405452420,-500.0,0.00033424,14]
[332649383,1721405452430,-1149.54,0.00033424,14]
[332649384,1721405452440,-3000.95,0.00033424,14]
[332649385,1721405452450,-12544.8,0.00033424,14]
[332649386,1721405452460,-3150.65,0.00033424,14]
[332649387,1721405452470,-1659.47,0.00033424,14]
[332649388,1721405452480,-2369.19,0.00033424,14]
[332649389,1721405452492,-500.0,0.00033424,14]
[332649390,1721405452502,-871.86,0.00033424,14]
[332649391,1721405452512,-1257.98,0.00033424,14]
[332649392,1721405452521,-500.0,0.00033424,14]
[332649393,1721405452531,-500.0,0.00033424,14]
[332649394,1721405452541,-33865.98,0.00033424,14]
[332649395,1721405452550,-2554.25,0.00033424,14]
[332649396,1721405452559,-585.26,0.00033424,14]
[332649397,1721405452568,-500.0,0.00033424,14]
[332649398,1721405452580,-16039.8,0.00033424,14]
[332649399,1721405452590,-684.81,0.00033424,14]
[332649400,1721405452600,-500.0,0.00033424,14]
[332649401,1721405452612,-5448.92,0.00033424,14]
[332649402,1721405452622,-500.0,0.00033424,14]
[332649403,1721405452632,-7767.51,0.00033424,14]
[332649404,1721405452642,-2290.4,0.00033424,14]
[332649405,1721405452652,-1115.03,0.00033424,14]
[332649406,1721405452662,-4546.82,0.00033424,14]
[332649407,1721405452671,-15549.95,0.00033424,14]
[332649408,1721405452681,-500.0,0.00033424,14]
[332649409,1721405452690,-1610.24,0.00033424,14]
[332649410,1721405452700,-713.98,0.00033424,14]
[332649411,1721405452710,-506.57537898,0.00033424,14]
[332649412,1721405452719,-846.65,0.00033424,14]
[332649413,1721405452729,-500.0,0.00033424,14]
[332649414,1721405452739,-2566.11,0.00033424,14]
[332649415,1721405452748,-748.23,0.00033424,14]
[332649416,1721405452758,-7374.06,0.00033424,14]
[332649417,1721405452767,-12833.28,0.00033424,14]
[332649418,1721405452776,-2320.73,0.00033424,14]
[332649419,1721405452785,-504.43,0.00033424,14]
[332649420,1721405452795,-17988.02,0.00033424,14]
[332649421,1721405452805,-1344.07,0.00033424,14]
[332649422,1721405452815,-500.0,0.00033424,14]
[332649423,1721405452824,-6295.21,0.00033424,14]
[332649424,1721405452833,-500.0,0.00033424,14]
[332649425,1721405452842,-13689.07,0.00033424,14]
[332649426,1721405452853,-4970.78,0.00033424,14]
[332649427,1721405452865,-2116.95,0.00033424,14]
[332649428,1721405452875,-2624.95,0.00033424,14]
[332649429,1721405452884,-500.0,0.00033424,14]
[332649430,1721405452894,-959.15,0.00033424,14]
[332649431,1721405452904,-2812.54,0.00033424,14]
[332649432,1721405452913,-500.0,0.00033424,14]
[332649433,1721405452923,-3410.57,0.00033424,14]
[332649434,1721405452932,-1958.01,0.00033424,14]
[332649435,1721405452942,-543.11,0.00033424,14]
[332649436,1721405452952,-7256.02,0.00033424,14]
[332649437,1721405452961,-1843.94,0.00033424,14]
[332649438,1721405452971,-518.99,0.00033424,14]
[332649439,1721405452980,-9013.11,0.00033424,14]
[332649440,1721405452990,-465.21655086,0.00033424,14]
[332649441,1721405452999,-500.0,0.00033424,14]
[332649442,1721405453009,-2927.81,0.00033424,14]
[332649443,1721405453018,-500.0,0.00033424,14]
[332649444,1721405453028,-7140.38,0.00033424,14]
[332649445,1721405453037,-3548.25,0.00033424,14]
[332649446,1721405453046,-3936.33,0.00033424,14]
[332649447,1721405453056,-7123.89,0.00033424,14]
[332649448,1721405453066,-500.0,0.00033424,14]
[332649449,1721405453076,-2418.71,0.00033424,14]
[332649450,1721405453085,-500.0,0.00033424,14]
[332649451,1721405453095,-5061.23,0.00033424,14]
[332649452,1721405453104,-1099.27,0.00033424,14]
[332649453,1721405453118,-720.78,0.00033424,14]
[332649454,1721405453127,-7161.68,0.00033424,14]
[332649455,1721405453137,-4343.92,0.00033424,14]
[332649456,1721405453147,-500.0,0.00033424,14]
[332649457,1721405453157,-1065.22,0.00033424,14]
[332649458,1721405453166,-5135.62,0.00033424,14]
[332649459,1721405453176,-502.0694733,0.00033424,14]
[332649460,1721405453185,-16158.34,0.00033424,14]
[332649461,1721405453195,-500.0,0.00033424,14]
[332649462,1721405453204,-506.72095105,0.00033424,14]
[332649463,1721405453213,-2158.0,0.00033424,14]
[332649464,1721405453223,-845.57,0.00033424,14]
[332649465,1721405453232,-500.0,0.00033424,14]
[332649466,1721405453242,-5083.59,0.00033424,14]
[332649467,1721405453254,-921.29,0.00033424,14]
[332649468,1721405453264,-9737.63,0.00033424,14]
[332649469,1721405453274,-500.0,0.00033424,14]
[332649470,1721405453283,-500.0,0.00033424,14]
[332649471,1721405453294,-2072.08,0.00033424,14]
[332649472,1721405453304,-500.0,0.00033424,14]
[332649473,1721405453313,-1561.89,0.00033424,14]
[332649474,1721405453323,-4838.92,0.00033424,14]
[332649475,1721405453333,-6611.96,0.00033424,14]
[332649476,1721405453343,-500.0,0.00033424,2]
[332649477,1721405453352,-500.0,0.00033424,14]
[332649478,1721405453364,-719.18,0.00033424,14]
[332649479,1721405453374,-500.0,0.00033424,14]
[332649480,1721405453383,-500.0,0.00033424,14]
[332649481,1721405453392,-500.0,0.00033424,14]
[332649482,1721405453401,-500.0,0.00033424,14]
[332649483,1721405453411,-8105.6,0.00033424,14]
[332649484,1721405453420,-500.0,0.00033424,14]
[332649485,1721405453430,-4351.25,0.00033424,14]
[332649486,1721405453439,-673.49,0.00033424,14]
[332649487,1721405453449,-1381.41,0.00033424,14]
[332649488,1721405453460,-1724.11,0.00033424,14]
[332649489,1721405453469,-2493.32,0.00033424,14]
[332649490,1721405453479,-4816.46,0.00033424,14]
[332649491,1721405453489,-809.11,0.00033424,14]
[332649492,1721405453499,-3427.99,0.00033424,14]
[332649493,1721405453507,-500.0,0.00033424,14]
[332649494,1721405453517,-509.00659299,0.00033424,14]